fUSD/lending_fUSD_20250302
["ID","MTS","AMOUNT","RATE_DAILY","PERIOD"]
[355152137,1740936676057,-552.48,0.00027091,2]
[355152138,1740936676067,-500.0,0.00027093,2]
[355152139,1740936676077,-500.0,0.00027093,2]
[355152140,1740936676087,-500.0,0.00027093,2]
[355152141,1740936676097,-500.0,0.00027093,2]
[355152142,1740936676107,-500.0,0.00027093,2]
[355152143,1740936676117,-245.14,0.00027093,2]
[355152144,1740936676127,-500.0,0.00027093,2]
[355152145,1740936676141,-321.89569527,0.00027093,2]
[355152146,1740936676151,-500.0,0.00027093,2]
[355152147,1740936676161,-749.52,0.00027093,2]
[355152148,1740936676171,-500.0,0.00027093,2]
[355152149,1740936676181,-500.0,0.00027093,2]
[355152150,1740936676190,-500.0,0.00027093,2]
[355152151,1740936676200,-579.15,0.00027093,2]
[355152152,1740936676210,-500.0,0.00027093,2]
[355152153,1740936676221,-500.0,0.00027093,2]
[355152154,1740936676231,-1942.91492784,0.000271,2]
[355152155,1740936676241,-943.25,0.00027122,2]
[355152156,1740936676252,-338.675155,0.00027122,2]
[355152157,1740936676262,-500.0,0.00027122,2]
[355152158,1740936676273,-1107.04,0.00027122,2]
[355152159,1740936676283,-355.414101,0.00027122,2]
[355152160,1740936676294,-2678.19,0.00027122,2]
[355152161,1740936676304,-1356.29,0.00027122,2]
[355152162,1740936676315,-1871.2,0.00027122,2]
[355152163,1740936676325,-1213.06,0.00027122,2]
[355152164,1740936676335,-1601.31,0.00027122,2]
[355152165,1740936676345,-1696.09,0.00027122,2]
[355152166,1740936676356,-925.66,0.00027122,2]
[355152167,1740936676366,-1548.63,0.00027122,2]
[355152168,1740936676377,-994.45,0.00027122,2]
[355152169,1740936676392,-1838.97,0.00027122,2]
[355152170,1740936676403,-2241.09,0.00027122,2]
[355152171,1740936676414,-1192.77,0.00027122,2]
[355152172,1740936676426,-1027.42,0.00027122,2]
[355152173,1740936676437,-1424.18,0.00027122,2]
[355152174,1740936676448,-613.43,0.00027122,2]
[355152175,1740936676459,-1363.11,0.00027122,2]
[355152176,1740936676471,-618.55,0.00027122,2]
[355152177,1740936676483,-647.85,0.00027122,2]
[355152178,1740936676495,-1050.23,0.00027122,2]
[355152179,1740936676508,-623.46,0.00027122,2]
[355152180,1740936676519,-500.0,0.00027122,2]
[355152181,1740936676530,-563.66,0.00027123,2]
[355152182,1740936676543,-500.0,0.00027123,2]
[355152183,1740936676553,-601.08,0.00027123,2]
[355152184,1740936676564,-500.0,0.00027123,2]
[355152185,1740936676575,-500.0,0.00027123,2]
[355152186,1740936676585,-500.0,0.00027123,2]
[355152187,1740936676595,-539.3,0.00027123,2]
[355152188,1740936676605,-500.14,0.00027123,2]
[355152189,1740936676615,-500.0,0.00027123,2]
[355152190,1740936676625,-500.0,0.00027123,2]
[355152191,1740936676639,-584.1,0.00027123,2]
[355152192,1740936676650,-500.0,0.00027123,2]
[355152193,1740936676660,-500.0,0.00027123,2]
[355152194,1740936676670,-545.66,0.00027123,2]
[355152195,1740936676681,-61.93005276,0.00027123,2]
[355152196,1740936676696,-438.06994724,0.00027123,2]
[355152197,1740936676707,-500.0,0.00027123,2]
[355152198,1740936676718,-500.0,0.00027123,2]
[355152199,1740936676730,-247.83413984,0.00027123,2]
[355152200,1740936676741,-500.0,0.00027123,2]
[355152201,1740936676751,-500.0,0.00027123,2]
[355152202,1740936676762,-500.0,0.00027123,2]
[355152203,1740936676773,-526.45,0.00027123,2]
[355152204,1740936676783,-561.12,0.00027123,2]
[355152205,1740936676794,-533.44,0.00027123,2]
[355152206,1740936676804,-748.22,0.00027123,2]
[355152207,1740936676815,-500.0,0.00027123,2]
[355152208,1740936676825,-500.0,0.00027123,2]
[355152209,1740936676836,-845.83,0.00027123,2]
[355152210,1740936676847,-911.47,0.00027123,2]
[355152211,1740936676858,-551.99,0.00027123,2]
[355152212,1740936676868,-4000.0,0.00027123,2]
[355152213,1740936676878,-500.0,0.00027123,2]
[355152214,1740936676893,-823.11,0.00027123,2]
[355152215,1740936676904,-786.8,0.00027123,2]
[355152216,1740936676914,-500.0,0.00027123,2]
[355152217,1740936676925,-500.0,0.00027123,2]
[355152218,1740936676935,-597.31,0.00027123,2]
[355152219,1740936676946,-688.82,0.00027123,2]
[355152220,1740936676957,-947.42,0.00027123,2]
[355152221,1740936676969,-1251.58,0.00027123,2]
[355152222,1740936676980,-1020.64,0.00027123,2]
[355152223,1740936676991,-2345.36,0.00027123,2]
[355152224,1740936677003,-1562.13,0.00027123,2]
[355152225,1740936677014,-1688.5,0.00027123,2]
[355152226,1740936677025,-1057.44,0.00027123,2]
[355152227,1740936677036,-1830.8,0.00027123,2]
[355152228,1740936677048,-1336.41,0.00027123,2]
[355152229,1740936677060,-767.39,0.00027123,2]
[355152230,1740936677072,-2213.46,0.00027123,2]
[355152231,1740936677083,-500.0,0.00027123,2]
[355152232,1740936677094,-1366.85,0.00027123,2]
[355152233,1740936677105,-500.0,0.00027123,2]
[355152234,1740936677116,-688.32,0.00027123,2]
[355152235,1740936677127,-2063.11,0.00027123,2]
[355152236,1740936677143,-500.0,0.00027123,2]
[355152237,1740936677155,-500.0,0.00027123,2]
[355152238,1740936677167,-237.08547538,0.00027123,2]
[355152239,1740936677178,-500.0,0.00027123,2]
[355152240,1740936677189,-620.51,0.00027123,2]
[355152241,1740936677200,-1466.04,0.00027123,2]
[355152242,1740936677211,-518.56,0.00027123,2]
[355152243,1740936677223,-1099.43,0.00027123,2]
[355152244,1740936677234,-1231.49,0.00027123,2]
[355152245,1740936677244,-500.0,0.00027123,2]
[355152246,1740936677256,-500.0,0.00027123,2]
[355152247,1740936677267,-565.79,0.00027123,2]
[355152248,1740936677279,-594.39,0.00027123,2]
[355152249,1740936677290,-500.0,0.00027123,2]
[355152250,1740936677302,-1282.11,0.00027123,2]
[355152251,1740936677314,-500.0,0.00027123,2]
[355152252,1740936677325,-500.0,0.00027123,2]
[355152253,1740936677336,-500.0,0.00027123,2]
[355152254,1740936677347,-1287.52,0.00027123,2]
[355152255,1740936677358,-691.44,0.00027123,2]
[355152256,1740936677369,-1137.27,0.00027123,2]
[355152257,1740936677380,-500.0,0.00027123,2]
[355152258,1740936677396,-975.02,0.00027123,2]
[355152259,1740936677407,-500.0,0.00027123,2]
[355152260,1740936677419,-1326.84,0.00027123,2]
[355152261,1740936677430,-601.46,0.00027123,2]
[355152262,1740936677441,-1957.9,0.00027123,2]
[355152263,1740936677451,-8310.8,0.00027123,2]
[355152264,1740936677462,-810.66,0.00027123,2]
[355152265,1740936677472,-799.92,0.00027123,2]
[355152266,1740936677483,-500.0,0.00027123,2]
[355152267,1740936677494,-1401.29,0.00027123,2]
[355152268,1740936677507,-500.0,0.00027123,2]
[355152269,1740936677518,-500.0,0.00027123,2]
[355152270,1740936677530,-1973.31,0.00027123,2]
[355152271,1740936677542,-775.25,0.00027123,2]
[355152272,1740936677553,-7254.96,0.00027123,2]
[355152273,1740936677565,-500.0,0.00027123,2]
[355152274,1740936677576,-266.79756266,0.00027152,2]
[355152275,1740936677587,-2305.69924369,0.00027173,2]
[355152276,1740936677598,-2723.45964108,0.00027213,2]
[355152277,1740936677609,-500.0,0.00027223,2]
[355152278,1740936677620,-2586.60514,0.0002725,2]
[355152279,1740936677631,-440.77661261,0.00027356,2]
[355152280,1740936677648,-500.0,0.00027363,2]
[355152281,1740936677660,-505.79,0.00027363,2]
[355152282,1740936677671,-614.06664623,0.00027363,2]
[355152283,1740936677682,-300.0,0.00027363,10]
[355152284,1740936677692,-338.82493417,0.00027364,10]
[355152285,1740936677703,-500.0,0.00027364,2]
[355152286,1740936677714,-500.0,0.00027364,2]
[355152287,1740936677724,-500.0,0.00027364,2]
[355152288,1740936677735,-500.0,0.00027364,2]
[355152289,1740936677746,-500.0,0.00027364,2]
[355152290,1740936677757,-500.0,0.00027364,2]
[355152291,1740936677767,-500.0,0.00027364,2]
[355152292,1740936677778,-500.0,0.00027364,2]
[355152293,1740936677788,-500.0,0.00027364,2]
[355152294,1740936677798,-500.0,0.00027364,2]
[355152295,1740936677809,-310.54,0.00027364,2]
[355152296,1740936677819,-325.29706645,0.00027364,2]
[355152297,1740936677830,-637.76039584,0.00027364,2]
[355152298,1740936677840,-500.0,0.00027364,2]
[355152299,1740936677851,-500.0,0.00027364,2]
[355152300,1740936677862,-500.0,0.00027364,2]
[355152301,1740936677873,-500.0,0.00027364,2]
[355152302,1740936677889,-500.0,0.00027364,2]
[355152303,1740936677899,-500.0,0.00027364,2]
[355152304,1740936677910,-500.0,0.00027364,2]
[355152305,1740936677920,-500.0,0.00027364,2]
[355152306,1740936677932,-500.0,0.00027364,2]
[355152307,1740936677942,-627.9107898,0.00027364,2]
[355152308,1740936677954,-508.33891367,0.00027364,2]
[355152309,1740936677965,-500.0,0.00027364,2]
[355152310,1740936677977,-587.3,0.00027364,2]
[355152311,1740936677987,-500.0,0.00027364,2]
[355152312,1740936677998,-583.26,0.00027364,2]
[355152313,1740936678008,-500.0,0.00027364,2]
[355152314,1740936678019,-500.0,0.00027364,2]
[355152315,1740936678031,-500.0,0.00027364,2]
[355152316,1740936678042,-500.0,0.00027364,2]
[355152317,1740936678053,-500.0,0.00027364,2]
[355152318,1740936678065,-527.29,0.00027364,2]
[355152319,1740936678076,-500.0,0.00027364,2]
[355152320,1740936678087,-500.0,0.00027364,2]
[355152321,1740936678098,-500.0,0.00027364,2]
[355152322,1740936678110,-500.0,0.00027364,2]
[355152323,1740936678121,-636.64,0.00027364,2]
[355152324,1740936678132,-500.0,0.00027364,2]
[355152325,1740936678148,-500.0,0.00027364,2]
[355152326,1740936678161,-500.0,0.00027364,2]
[355152327,1740936678172,-1000.0,0.00027364,2]
[355152328,1740936678184,-500.0,0.00027364,2]
[355152329,1740936678196,-1367.43,0.00027364,2]
[355152330,1740936678208,-500.0,0.00027364,2]
[355152331,1740936678220,-1489.98,0.00027364,2]
[355152332,1740936678232,-500.0,0.00027364,2]
[355152333,1740936678244,-637.17,0.00027364,2]
[355152334,1740936678255,-504.63,0.00027364,2]
[355152335,1740936678268,-500.0,0.00027364,2]
[355152336,1740936678280,-500.0,0.00027364,2]
[355152337,1740936678292,-1048.52,0.00027364,2]
[355152338,1740936678303,-500.0,0.00027364,2]
[355152339,1740936678315,-2495.65,0.00027364,2]
[355152340,1740936678326,-580.52657108,0.00027364,2]
[355152341,1740936678339,-592.96,0.00027364,2]
[355152342,1740936678350,-2584.12,0.00027364,2]
[355152343,1740936678370,-634.06,0.00027364,2]
[355152344,1740936678382,-500.0,0.00027364,2]
[355152345,1740936678399,-500.0,0.00027364,2]
[355152346,1740936678411,-1864.87,0.00027364,2]
[355152347,1740936678423,-500.0,0.00027364,2]
[355152348,1740936678435,-900.18,0.00027364,2]
[355152349,1740936678447,-828.36,0.00027364,2]
[355152350,1740936678458,-1132.79,0.00027364,2]
[355152351,1740936678470,-656.73,0.00027364,2]
[355152352,1740936678482,-500.0,0.00027364,2]
[355152353,1740936678495,-985.57,0.00027364,2]
[355152354,1740936678511,-764.79,0.00027364,2]
[355152355,1740936678523,-500.0,0.00027364,2]
[355152356,1740936678535,-500.0,0.00027364,2]
[355152357,1740936678549,-537.49,0.00027364,2]
[355152358,1740936678563,-500.0,0.00027364,2]
[355152359,1740936678575,-1124.47,0.00027364,2]
[355152360,1740936678587,-500.0,0.00027364,2]
[355152361,1740936678601,-500.0,0.00027364,2]
[355152362,1740936678613,-571.39,0.00027364,2]
[355152363,1740936678625,-3007.27,0.00027364,2]
[355152364,1740936678643,-1099.4,0.00027365,2]
[355152365,1740936678657,-616.8,0.00027365,2]
[355152366,1740936678670,-500.0,0.00027365,2]
[355152367,1740936678683,-500.0,0.00027365,2]
[355152368,1740936678714,-708.04,0.00027365,2]
[355152369,1740936678729,-271.73,0.00027365,2]
[355152370,1740936678742,-714.91,0.00027365,2]
[355152371,1740936678755,-500.0,0.00027365,2]
[355152372,1740936678768,-500.0,0.00027365,2]
[355152373,1740936678780,-500.0,0.00027365,2]
[355152374,1740936678792,-500.0,0.00027365,2]
[355152375,1740936678831,-555.82,0.00027365,2]
[355152376,1740936678844,-609.57,0.00027365,2]
[355152377,1740936678855,-722.13,0.00027365,2]
[355152378,1740936678867,-500.0,0.00027365,2]
[355152379,1740936678879,-784.49,0.00027365,2]
[355152380,1740936678897,-500.0,0.00027365,2]
[355152381,1740936678909,-500.0,0.00027365,2]
[355152382,1740936678920,-796.39,0.00027365,2]
[355152383,1740936678932,-783.83,0.00027365,2]
[355152384,1740936678945,-500.0,0.00027365,2]
[355152385,1740936678956,-500.0,0.00027365,2]
[355152386,1740936678967,-595.44,0.00027365,2]
[355152387,1740936678979,-684.73,0.00027365,2]
[355152388,1740936678991,-614.23,0.00027365,2]
[355152389,1740936679003,-706.47,0.00027365,2]
[355152390,1740936679014,-500.0,0.00027365,2]
[355152391,1740936679026,-197.23,0.00027365,2]
[355152392,1740936679037,-500.0,0.00027365,2]
[355152393,1740936679048,-331.34153137,0.00027365,2]
[355152394,1740936679060,-500.0,0.00027365,2]
[355152395,1740936679072,-500.0,0.00027365,2]
[355152396,1740936679084,-500.0,0.00027365,2]
[355152397,1740936679095,-500.0,0.00027365,2]
[355152398,1740936679106,-500.0,0.00027365,2]
[355152399,1740936679118,-571.71,0.00027365,2]
[355152400,1740936679130,-500.0,0.00027365,2]
[355152401,1740936679147,-595.9,0.00027365,2]
[355152402,1740936679158,-500.0,0.00027365,2]
[355152403,1740936679170,-825.14,0.00027365,2]
[355152404,1740936679182,-853.07,0.00027365,2]
[355152405,1740936679194,-902.34,0.00027365,2]
[355152406,1740936679205,-671.39,0.00027365,2]
[355152407,1740936679215,-846.77,0.00027365,2]
[355152408,1740936679227,-500.0,0.00027365,2]
[355152409,1740936679238,-889.33,0.00027365,2]
[355152410,1740936679249,-723.76,0.00027365,2]
[355152411,1740936679260,-986.05,0.00027365,2]
[355152412,1740936679270,-511.89,0.00027365,2]
[355152413,1740936679282,-190.94905649,0.00027365,2]
[355152414,1740936679302,-1081.14094351,0.00027365,2]
[355152415,1740936679314,-552.48,0.00027365,2]
[355152416,1740936679325,-200.0,0.00027367,2]
[355152417,1740936679337,-500.0,0.00027367,2]
[355152418,1740936679347,-500.0,0.00027367,2]
[355152419,1740936679359,-500.0,0.00027367,2]
[355152420,1740936679370,-500.0,0.00027367,2]
[355152421,1740936679381,-500.0,0.00027367,2]
[355152422,1740936679397,-500.0,0.00027367,2]
[355152423,1740936679408,-749.52,0.00027367,2]
[355152424,1740936679420,-500.0,0.00027367,2]
[355152425,1740936679432,-500.0,0.00027367,2]
[355152426,1740936679443,-500.0,0.00027367,2]
[355152427,1740936679454,-579.15,0.00027367,2]
[355152428,1740936679479,-500.0,0.00027367,2]
[355152429,1740936679490,-204.49585861,0.00027367,2]
[355152430,1740936679507,-295.50414139,0.00027367,2]
[355152431,1740936679519,-734.82153419,0.00027377,2]
[355152432,1740936679534,-465.70650756,0.00027377,2]
[355152433,1740936679549,-230.96572045,0.00027377,2]
[355152434,1740936679562,-1627.83427955,0.00027377,2]
[355152435,1740936679576,-2567.84737655,0.00027377,2]
[355152436,1740936679587,-13023.4084842,0.00027377,2]
[355152437,1740936679598,-1873.7813475,0.00027377,2]
[355152438,1740936679608,-979.48276097,0.00027377,2]
[355152439,1740936679951,-500.0,0.0002572,2]
[355152440,1740936679961,-359.31448273,0.00027377,2]
[355152441,1740936679971,-176.3120766,0.00027377,2]
[355152442,1740936679981,-164.2460851,0.00027377,2]
[355152443,1740936679991,-500.0,0.00027396,2]
[355152444,1740936680001,-500.0,0.00027396,2]
[355152445,1740936680010,-123.73836823,0.00027396,2]
[355152446,1740936680022,-376.26163177,0.00027396,2]
[355152447,1740936680032,-500.0,0.00027396,2]
[355152448,1740936680046,-4122.38,0.00027396,2]
[355152449,1740936680056,-943.25,0.00027396,2]
[355152450,1740936680066,-338.675155,0.00027396,2]
[355152451,1740936680076,-500.0,0.00027396,2]
[355152452,1740936680086,-1107.04,0.00027396,2]
[355152453,1740936680096,-355.414101,0.00027396,2]
[355152454,1740936680106,-1069.57938035,0.00027396,2]
[355152455,1740936680123,-1608.61061965,0.00027396,2]
[355152456,1740936680133,-236.7148395,0.00027396,2]
[355152457,1740936680149,-1119.5751605,0.00027396,2]
[355152458,1740936680159,-1871.2,0.00027396,2]
[355152459,1740936680169,-740.6668395,0.00027396,2]
[355152460,1740936680181,-472.3931605,0.00027396,2]
[355152461,1740936680191,-208.38773905,0.00027396,2]
[355152462,1740936863608,267.57733331,0.00024657,120]
[355152463,1740936863629,232.42266669,0.00024657,120]
[355152464,1740936863864,363.19179836,0.00024931,120]
[355152465,1740936863885,136.80820164,0.00024931,120]
[355152466,1740936864109,457.13179836,0.00025205,120]
[355152467,1740936864130,42.86820164,0.00025205,120]
[355152468,1740936864354,500.0,0.00025479,120]
[355152469,1740936864602,51.07179836,0.00025753,120]
[355152470,1740936864623,448.92820164,0.00025753,120]
[355152471,1740936864844,145.01179836,0.00026027,120]
[355152472,1740936864866,354.98820164,0.00026027,120]
[355152473,1740936865083,349.37179836,0.00026301,120]
[355152474,1740936865104,214.29987114,0.00026301,120]
[355152475,1740937319198,379.64012886,0.00026929,120]
[355152476,1740937319222,244.03987114,0.00026929,120]
[355152684,1740937710224,250.0,0.00013,2]
[355152685,1740937711304,300.0,0.00015,2]
[355152686,1740937712392,350.0,0.00017,2]
[355153009,1740937832075,-169.03,0.00021918,2]
[355153011,1740937832086,-539.94359572,0.00022356,2]
[355153016,1740937832132,-5033.10556944,0.00022356,2]
[355153018,1740937832145,-291.693321,0.00022356,2]
[355153028,1740937832243,-478.31588386,0.00022356,2]
[355153030,1740937832257,-56067.00737906,0.00022356,2]
[355153032,1740937832268,-1214.77,0.00022356,2]
[355153034,1740937832279,-500.0,0.000224,2]
[355153036,1740937832290,-1154.08,0.00023451,2]
[355153038,1740937832302,-5400.9938313,0.00023458,2]
[355153041,1740937832312,-150.0,0.00023458,7]
[355153042,1740937832322,-1000.0,0.00023481,2]
[355153043,1740937832332,-2000.0,0.00023685,2]
[355153044,1740937832342,-170.96,0.00023836,2]
[355153045,1740937832352,-150.0,0.0002389,2]
[355153046,1740937832363,-170.96,0.00023897,2]
[355153047,1740937832374,-362.39064609,0.000239,3]
[355153048,1740937832384,-1169.76,0.00023911,2]
[355153049,1740937832393,-623.68,0.00023937,2]
[355153050,1740937832403,-150.0,0.00023963,2]
[355153051,1740937832414,-200.0,0.00024057,2]
[355153052,1740937832427,-200.0,0.00024093,2]
[355153053,1740937832437,-362.39064584,0.00024107,3]
[355153054,1740937832447,-150.0,0.0002411,2]
[355153055,1740937832457,-250.0,0.00024125,2]
[355153056,1740937832467,-362.39064584,0.00024314,3]
[355153057,1740937832477,-170.96,0.00024375,2]
[355153058,1740937832487,-2047.2131,0.00024444,2]
[355153059,1740937832497,-1213.6756,0.00024444,2]
[355153060,1740937832507,-158.62,0.00024454,2]
[355153061,1740937832517,-18429.6128,0.0002452,2]
[355153062,1740937832527,-362.39064584,0.00024521,3]
[355153063,1740937832537,-500.0,0.00024544,2]
[355153064,1740937832546,-500.0,0.00024544,2]
[355153065,1740937832556,-500.0,0.00024544,2]
[355153066,1740937832566,-500.0,0.00024544,2]
[355153067,1740937832576,-500.0,0.00024544,2]
[355153068,1740937832587,-500.0,0.00024544,2]
[355153069,1740937832597,-500.0,0.00024544,2]
[355153070,1740937832608,-500.0,0.00024544,2]
[355153071,1740937832620,-500.0,0.00024544,2]
[355153072,1740937832633,-500.0,0.00024544,2]
[355153073,1740937832643,-500.0,0.00024544,2]
[355153074,1740937832654,-500.0,0.00024544,2]
[355153075,1740937832664,-500.0,0.00024544,2]
[355153076,1740937832680,-500.0,0.00024544,2]
[355153077,1740937832691,-500.0,0.00024544,2]
[355153078,1740937832706,-500.0,0.00024544,2]
[355153079,1740937832717,-500.0,0.00024544,2]
[355153080,1740937832728,-500.0,0.00024544,2]
[355153081,1740937832738,-500.0,0.00024544,2]
[355153083,1740937832748,-500.0,0.00024544,2]
[355153085,1740937832759,-500.0,0.00024544,2]
[355153087,1740937832769,-500.0,0.00024544,2]
[355153090,1740937832780,-500.0,0.00024544,2]
[355153093,1740937832790,-500.0,0.00024544,2]
[355153095,1740937832800,-500.0,0.00024544,2]
[355153097,1740937832810,-500.0,0.00024544,2]
[355153098,1740937832820,-500.0,0.00024544,2]
[355153099,1740937832833,-500.0,0.00024544,2]
[355153100,1740937832842,-500.0,0.00024544,2]
[355153101,1740937832852,-500.0,0.00024544,2]
[355153102,1740937832862,-500.0,0.00024544,2]
[355153103,1740937832872,-500.0,0.00024544,2]
[355153104,1740937832882,-500.0,0.00024544,2]
[355153105,1740937832891,-500.0,0.00024544,2]
[355153106,1740937832901,-500.0,0.00024544,2]
[355153107,1740937832913,-500.0,0.00024544,2]
[355153108,1740937832927,-500.0,0.00024544,2]
[355153109,1740937832936,-500.0,0.00024544,2]
[355153110,1740937832951,-500.0,0.00024544,2]
[355153111,1740937832962,-500.0,0.00024544,2]
[355153112,1740937832972,-500.0,0.00024544,2]
[355153113,1740937832983,-500.0,0.00024544,2]
[355153114,1740937832993,-500.0,0.00024544,2]
[355153115,1740937833003,-500.0,0.00024544,2]
[355153116,1740937833013,-500.0,0.00024544,2]
[355153117,1740937833024,-500.0,0.00024544,2]
[355153118,1740937833035,-500.0,0.00024544,2]
[355153119,1740937833045,-500.0,0.00024544,2]
[355153120,1740937833057,-252.72235098,0.00024544,2]
[355153121,1740937833072,-247.27764902,0.00024544,2]
[355153122,1740937833084,-500.0,0.00024544,2]
[355153123,1740937833095,-500.0,0.00024544,2]
[355153124,1740937833106,-500.0,0.00024544,2]
[355153125,1740937833117,-500.0,0.00024544,2]
[355153126,1740937833127,-500.0,0.00024544,2]
[355153127,1740937833138,-500.0,0.00024544,2]
[355153128,1740937833148,-500.0,0.00024544,2]
[355153129,1740937833159,-500.0,0.00024544,2]
[355153130,1740937833174,-500.0,0.00024544,2]
[355153131,1740937833185,-500.0,0.00024544,2]
[355153132,1740937833255,-500.0,0.00024544,2]
[355153133,1740937833268,-511.0,0.00024544,2]
[355153134,1740937833279,-500.0,0.00024544,2]
[355153135,1740937833295,-500.0,0.00024544,2]
[355153136,1740937833307,-500.0,0.00024544,2]
[355153137,1740937833319,-500.0,0.00024544,2]
[355153138,1740937833330,-500.0,0.00024544,2]
[355153139,1740937833342,-500.0,0.00024544,2]
[355153140,1740937833354,-500.0,0.00024544,2]
[355153141,1740937833366,-500.0,0.00024544,2]
[355153142,1740937833377,-500.0,0.00024544,2]
[355153143,1740937833388,-719.0,0.00024544,2]
[355153144,1740937833399,-500.0,0.00024544,2]
[355153145,1740937833410,-23900.0,0.00024544,2]
[355153146,1740937833425,-1014.7027,0.00024557,2]
[355153147,1740937833436,-1456.3465,0.00024557,2]
[355153148,1740937833447,-1224.4212,0.00024557,2]
[355153149,1740937833458,-2231.13453198,0.00024557,2]
[355153150,1740937833470,-1000.0,0.00024598,2]
[355153151,1740937833482,-182.42,0.00024619,2]
[355153152,1740937833493,-2302.161,0.0002462,7]
[355153153,1740937833504,-154.644,0.0002462,7]
[355153154,1740937833515,-1214.77,0.0002462,2]
[355153155,1740937833525,-500.0,0.00024656,2]
[355153156,1740937833536,-550.40190334,0.00024656,2]
[355153157,1740937833546,-409.08023827,0.00024657,2]
[355153158,1740937833558,-502.07059672,0.00024657,2]
[355153159,1740937833569,-501.92880363,0.00024657,2]
[355153160,1740937833580,-500.0,0.00024657,2]
[355153161,1740937833591,-500.0,0.00024657,2]
[355153162,1740937833602,-501.48137197,0.00024657,2]
[355153163,1740937833614,-500.0,0.00024657,2]
[355153164,1740937833625,-500.0,0.00024657,2]
[355153165,1740937833637,-500.0,0.00024657,2]
[355153166,1740937833648,-500.0,0.00024657,2]
[355153167,1740937833659,-500.0,0.00024657,2]
[355153168,1740937833676,-500.0,0.00024657,2]
[355153169,1740937833688,-300.0,0.00024657,2]
[355153170,1740937833700,-500.0,0.00024657,2]
[355153171,1740937833712,-500.0,0.00024657,2]
[355153172,1740937833724,-500.0,0.00024657,2]
[355153173,1740937833735,-500.0,0.00024657,2]
[355153174,1740937833747,-500.0,0.00024657,2]
[355153175,1740937833760,-500.0,0.00024657,2]
[355153176,1740937833771,-500.0,0.00024657,2]
[355153177,1740937833782,-367.47323241,0.00024657,2]
[355153178,1740937833793,-500.0,0.00024657,2]
[355153179,1740937833806,-546.80057025,0.00024657,2]
[355153180,1740937833818,-500.0,0.00024657,2]
[355153181,1740937833830,-500.0,0.00024657,2]
[355153182,1740937833841,-500.0,0.00024657,2]
[355153183,1740937833852,-500.0,0.00024657,2]
[355153184,1740937833863,-502.36722815,0.00024657,2]
[355153185,1740937833875,-500.0,0.00024657,2]
[355153186,1740937833887,-500.0,0.00024657,2]
[355153187,1740937833899,-180.93521915,0.00024657,2]
[355153188,1740937833913,-506.54049496,0.00024657,2]
[355153189,1740937833929,-596.11536594,0.00024657,2]
[355153190,1740937833940,-500.0,0.00024657,2]
[355153191,1740937833955,-505.362263,0.00024657,2]
[355153192,1740937833966,-522.01396376,0.00024657,2]
[355153193,1740937833977,-500.0,0.00024657,2]
[355153194,1740937833989,-500.0,0.00024657,2]
[355153195,1740937834001,-500.0,0.00024657,2]
[355153196,1740937834012,-500.0,0.00024657,2]